bitfinex-derivatives/quotes_SOLF0:USTF0_20251109
["timestamp","ask_amount","ask_price","bid_price","bid_amount"]
[1762694760616,3.25631737,159.61,159.57,0.04470268]
[1762694760817,3.25631737,159.61,159.57,3.21470268]
[1762694761724,2.93,159.59,159.57,0.04470268]
[1762694762319,8.5709,159.59,159.57,0.04470268]
[1762694762519,2.93,159.57,159.48,3.19]
[1762694762718,2.93,159.55,159.48,3.19]
[1762694762911,7.76040982,159.61,159.48,3.19]
[1762694762912,5.83739195,159.59,159.48,3.19]
[1762694763115,7.84841209,159.58,159.48,3.19]
[1762694763317,2.93,159.58,159.48,3.19]
[1762694763515,0.04516482,159.55,159.52,3.19]
[1762694763813,0.04516482,159.55,159.54,3.19]
[1762694766423,2.93,159.61,159.56,3.19]
[1762694767116,2.93,159.61,159.57,5.6413]
[1762694767322,2.97524571,159.61,159.57,5.6813258]
[1762694767627,2.93,159.59,159.57,0.0400258]
[1762694768918,0.04524571,159.61,159.57,3.2300258]
[1762694768919,2.93,159.6,159.57,3.2300258]
[1762694769421,4.91635518,159.59,159.57,0.0400258]
[1762694769626,2.93,159.58,159.57,0.0400258]
[1762694770922,7.84661766,159.58,159.57,0.0400258]
[1762694771527,2.93,159.58,159.57,0.0400258]
[1762694771724,7.847938,159.58,159.57,0.0400258]
[1762694771928,2.93,159.58,159.57,0.0400258]
[1762694772224,7.847938,159.58,159.57,0.0400258]
[1762694773022,7.84960805,159.58,159.57,0.0400258]
[1762694773218,2.93,159.6,159.57,0.0400258]
[1762694773423,2.93,159.58,159.57,0.0400258]
[1762694773629,7.85193578,159.58,159.57,0.0400258]
[1762694774230,2.93,159.58,159.57,0.0400258]
[1762694777035,0.04524571,159.61,159.6,3.19]
[1762694777331,2.97524571,159.61,159.58,3.19]
[1762694777522,2.97524571,159.61,159.57,3.2300258]
[1762694778422,2.97524571,159.61,159.58,5.6409]
[1762694779026,0.04524571,159.61,159.59,8.8306]
[1762694780725,0.04524571,159.61,159.6,3.19]
[1762694782137,2.93,159.67,159.63,3.19]
[1762694782836,4.84203435,159.66,159.6,3.19]
[1762694783035,61.52,159.73,159.6,3.19]
[1762694783036,2.93,159.64,159.6,3.19]
[1762694783431,2.93,159.64,159.6,3.23175281]
[1762694783733,2.93,159.64,159.61,8.8298]
[1762694785228,2.97508274,159.65,159.62,3.19]
[1762694786230,2.97508274,159.65,159.61,8.8298]
[1762694788440,2.97508274,159.65,159.62,8.8296]
[1762694788635,0.04508274,159.65,159.63,3.19]
[1762694788836,2.97508274,159.65,159.62,5.6396]
[1762694790148,2.97508274,159.65,159.62,8.8296]
[1762694792950,0.04508274,159.65,159.64,2.96]
[1762694795447,0.04508274,159.65,159.63,5.6392]
[1762694795641,3.04508274,159.65,159.63,5.6392]
[1762694796742,0.04508274,159.65,159.63,8.5992]
[1762694799955,3.04508274,159.65,159.63,5.6392]
[1762694800254,3.04508274,159.65,159.61,5.6398]
[1762694800453,3.04508274,159.65,159.62,2.96]
[1762694801656,8.68378274,159.65,159.6,0.04175281]
[1762694801857,3.0,159.64,159.6,0.04175281]
[1762694802249,3.0,159.62,159.6,0.04175281]
[1762694803658,3.0,159.61,159.6,0.04175281]
[1762694803853,3.0,159.61,159.55,5.6419]
[1762694804058,0.04508274,159.65,159.55,5.6419]
[1762694804059,3.0,159.6,159.55,5.6419]
[1762694804449,3.0,159.6,159.53,8.6027]
[1762694804955,5.8382071,159.64,159.55,0.04597088]
[1762694804956,3.04137834,159.58,159.55,0.04597088]
[1762694805157,0.04137834,159.58,159.55,3.00597088]
[1762694805751,0.04137834,159.58,159.57,2.96]
[1762694807959,3.05137834,159.58,159.55,0.04597088]
[1762694813964,8.69257834,159.58,159.55,0.04597088]
[1762694814152,3.01,159.57,159.55,0.04597088]
[1762694819459,8.6515,159.57,159.55,0.04597088]
[1762694819653,3.01,159.56,159.55,0.04597088]
[1762694823276,0.04137834,159.58,159.57,2.96]
[1762694824368,3.04,159.64,159.6,2.96]
[1762694825475,3.08044413,159.64,159.6,3.00318446]
[1762694825672,0.04044413,159.64,159.61,2.96]
[1762694826366,0.04044413,159.64,159.61,8.5999]
[1762694828071,0.04044413,159.64,159.62,2.96]
[1762694830772,3.08044413,159.64,159.62,2.96]
[1762694831570,3.08044413,159.64,159.6,0.04318446]
[1762694831770,3.08044413,159.64,159.6,3.00318446]
[1762694832572,7.8159794,159.64,159.6,0.04318446]
[1762694832879,3.04,159.62,159.6,0.04318446]
[1762694833871,0.04044413,159.64,159.6,3.00318446]
[1762694833872,3.08044413,159.64,159.6,3.00318446]
[1762694834071,0.04044413,159.64,159.6,3.00318446]
[1762694836082,0.04044413,159.64,159.62,2.96]
[1762694837378,0.04044413,159.64,159.62,8.5996]
[1762694837779,0.04044413,159.64,159.63,2.96]
[1762694840177,3.08044413,159.64,159.61,2.96]
[1762694840581,3.08044413,159.64,159.6,0.04318446]
[1762694841684,3.04,159.63,159.6,0.04318446]
[1762694844686,3.04,159.61,159.6,0.04318446]
[1762694847090,3.04,159.63,159.6,0.04318446]
[1762694847586,3.04,159.63,159.6,3.00318446]
[1762694848280,0.04044413,159.64,159.61,2.96]
[1762694849381,0.04044413,159.64,159.63,2.96]
[1762694850387,3.08044413,159.64,159.6,0.04318446]
[1762694851091,3.04,159.62,159.6,0.04318446]
[1762694853700,0.04044413,159.64,159.6,0.04318446]
[1762694853701,2.93044413,159.64,159.6,2.94318446]
[1762694855185,0.04044413,159.64,159.6,2.94318446]
[1762694856088,0.04044413,159.64,159.61,8.5398]
[1762694856296,2.93044413,159.64,159.61,8.5398]
[1762694857490,0.04044413,159.64,159.62,2.9]
[1762694861210,0.04044413,159.64,159.63,2.9]
[1762694862699,4.45974086,159.67,159.63,2.9]
[1762694863704,4.49962705,159.67,159.66,8.5382]
[1762694864700,2.705e-05,159.67,159.66,8.5382]
[1762694866299,2.705e-05,159.67,159.66,9.7982]
[1762694868004,2.705e-05,159.67,159.63,11.6871777]
[1762694868005,8.725e-05,159.71,159.7,8.5468]
[1762694872002,8.725e-05,159.71,159.69,0.04261137]
[1762694872201,8.725e-05,159.71,159.69,2.95261137]
[1762694872908,8.725e-05,159.71,159.69,0.04261137]
[1762694875210,8.725e-05,159.71,159.69,2.95261137]
[1762694877810,8.725e-05,159.71,159.7,2.91]
[1762694887818,8.725e-05,159.71,159.69,8.60961137]
[1762694888123,8.725e-05,159.71,159.7,2.93]
[1762694894031,8.725e-05,159.71,159.69,8.60961137]
[1762694894219,8.725e-05,159.71,159.7,2.93]
[1762694894727,8.725e-05,159.71,159.69,0.04261137]
[1762694895029,8.725e-05,159.71,159.69,2.97261137]
[1762694895233,8.725e-05,159.71,159.69,8.60971137]
[1762694895534,8.725e-05,159.71,159.7,2.93]
[1762694896820,8.725e-05,159.71,159.69,8.60971137]
[1762694897630,8.725e-05,159.71,159.69,0.04261137]
[1762694898532,3.18,159.7,159.62,2.93]
[1762694899126,3.18,159.7,159.64,5.6387]
[1762694899327,3.18,159.7,159.65,2.93]
[1762694899731,0.0474454,159.69,159.66,2.97107431]
[1762694901427,3.2274454,159.69,159.66,2.97107431]
[1762694902430,3.2274454,159.69,159.67,2.93]
[1762694902630,0.0474454,159.69,159.67,2.93]
[1762694903336,0.0474454,159.69,159.68,2.93]
[1762694913753,3.17,159.76,159.7,3.11]
[1762694914039,7.91587244,159.75,159.7,3.11]
[1762694914233,3.17,159.75,159.7,3.11]
[1762694914630,3.17,159.75,159.73,3.11]
[1762694914834,0.04730599,159.74,159.73,3.11]
[1762694916143,0.04730599,159.74,159.72,0.04287944]
[1762694916144,3.21730599,159.74,159.72,0.04287944]
[1762694918838,0.04730599,159.74,159.72,3.15287944]
[1762694919743,3.21730599,159.74,159.72,3.15287944]
[1762694922338,3.21730599,159.74,159.72,0.04287944]
[1762694929841,3.16,159.72,159.61,2.95]
[1762694930153,3.16,159.7,159.61,2.95]
[1762694930548,3.16,159.69,159.66,2.95]
[1762694931046,0.04336278,159.69,159.68,2.95]
[1762694937461,0.04336278,159.69,159.67,8.5878]
[1762694937756,0.04336278,159.69,159.68,2.95]
[1762694938769,0.04336278,159.69,159.67,8.5878]
[1762694939065,3.20336278,159.69,159.66,0.04732311]
[1762694940167,8.84066278,159.69,159.66,0.04732311]
[1762694940459,3.16,159.68,159.66,0.04732311]
[1762694941363,3.16,159.67,159.66,0.04732311]
[1762694944073,3.17,159.66,159.61,5.6399]
[1762694944977,3.17,159.65,159.6,2.95]
[1762694945178,3.21140503,159.64,159.61,0.04220614]
[1762694947071,0.04140503,159.64,159.61,3.13220614]
[1762694948077,3.21140503,159.64,159.61,3.13220614]
[1762694949078,3.21140503,159.64,159.61,0.04220614]
[1762694949579,3.21140503,159.64,159.61,3.13220614]
[1762694954276,3.21140503,159.64,159.61,8.77200614]
[1762694954784,0.04140503,159.64,159.62,3.09]
[1762694955877,3.21140503,159.64,159.61,8.77200614]
[1762694957086,0.04140503,159.64,159.62,8.7295]
[1762694957282,0.04140503,159.64,159.63,3.09]
[1762694958588,3.17,159.7,159.67,8.7278]
[1762694959591,3.21060037,159.7,159.67,8.76952796]
[1762694960887,3.21060037,159.7,159.68,3.09]
[1762694961090,0.04060037,159.7,159.68,3.09]
[1762694970202,0.04060037,159.7,159.69,3.09]
[1762694987818,2.99,159.77,159.72,3.14]
[1762694988820,0.04768843,159.76,159.74,3.14]
[1762694989120,0.04768843,159.76,159.74,8.7753]
[1762694989617,0.04768843,159.76,159.75,3.14]
[1762694990516,0.04768843,159.76,159.74,8.7753]
[1762694991919,0.04768843,159.76,159.75,3.14]
[1762695000121,3.20768843,159.76,159.74,8.7753]
[1762695000625,0.04768843,159.76,159.75,3.14]
[1762695002930,3.07,159.82,159.78,2.97]
[1762695003124,65.55,159.85,159.78,2.97]
[1762695003330,7.77137789,159.84,159.78,2.97]
[1762695003524,4.70137789,159.83,159.78,2.97]
[1762695003725,3.07,159.84,159.78,2.97]
[1762695004025,7.81204824,159.83,159.8,8.6032]
[1762695004227,3.11190313,159.83,159.81,2.97]
[1762695004421,0.04190313,159.83,159.81,2.97]
[1762695004631,0.04190313,159.83,159.82,2.97]
[1762695004830,0.04190313,159.83,159.79,0.04486075]
[1762695004831,3.11190313,159.83,159.8,2.97]
[1762695005125,0.04190313,159.83,159.8,5.6332]
[1762695005325,0.04190313,159.83,159.81,2.97]
[1762695005930,3.11190313,159.83,159.79,0.04486075]
[1762695006530,3.07,159.81,159.79,0.04486075]
[1762695007934,3.07,159.8,159.79,0.04486075]
[1762695009135,3.07,159.78,159.74,2.97]
[1762695010234,3.11546938,159.78,159.74,3.01582073]
[1762695012025,3.11546938,159.78,159.75,2.97]
[1762695017139,3.07,159.75,159.74,0.04582073]
[1762695017647,3.07,159.75,159.68,2.97]
[1762695017834,3.07,159.74,159.68,8.6073]
[1762695018139,3.07,159.74,159.64,2.97]
[1762695018333,5.6366,159.71,159.64,2.97]
[1762695018634,3.11457609,159.69,159.66,0.03988648]
[1762695020130,3.07,159.68,159.66,0.03988648]
[1762695020540,3.07,159.65,159.58,8.6109]
[1762695020745,3.07,159.65,159.59,2.97]
[1762695021236,3.07,159.65,159.6,2.97]
[1762695021436,0.04380762,159.64,159.62,2.97]
[1762695022037,3.11380762,159.64,159.61,0.04393519]
[1762695022345,3.11380762,159.64,159.61,3.01393519]
[1762695023033,3.11380762,159.64,159.61,0.04393519]
[1762695023239,3.11380762,159.64,159.61,3.01393519]
[1762695024643,3.11380762,159.64,159.61,0.04393519]
[1762695026240,0.04380762,159.64,159.61,3.01393519]
[1762695026545,3.11380762,159.64,159.61,0.04393519]
[1762695026935,3.11380762,159.64,159.61,3.01393519]
[1762695028841,3.11380762,159.64,159.61,0.04393519]
[1762695030848,8.75290762,159.64,159.61,0.04393519]
[1762695031048,3.07,159.63,159.61,0.04393519]
[1762695033255,0.04380762,159.64,159.61,3.20393519]
[1762695033441,2.94380762,159.64,159.61,3.20393519]
[1762695036355,0.04380762,159.64,159.61,3.20393519]
[1762695036654,2.94380762,159.64,159.61,3.20393519]
[1762695037056,0.04380762,159.64,159.61,3.20393519]
[1762695037959,0.04380762,159.64,159.61,8.84383519]
[1762695038156,2.94380762,159.64,159.61,3.20393519]
[1762695042756,2.94380762,159.64,159.61,0.04393519]
[1762695043459,2.94380762,159.64,159.61,3.20393519]
[1762695044559,2.94380762,159.64,159.61,0.04393519]
[1762695045452,5.6394,159.63,159.61,0.04393519]
[1762695045756,2.9,159.62,159.61,0.04393519]
[1762695046156,3.18,159.61,159.56,5.6415]
[1762695046357,3.18,159.61,159.55,3.17]
[1762695047260,3.18,159.59,159.56,0.04064915]
[1762695047451,3.18,159.58,159.56,0.04149365]
[1762695048864,3.18,159.57,159.56,0.04149365]
[1762695052852,3.18,159.59,159.56,3.21149365]
[1762695055251,3.22061043,159.6,159.56,3.21149365]
[1762695057052,3.18,159.59,159.56,3.21149365]
[1762695059065,3.18,159.59,159.56,8.85319365]
[1762695059267,3.22061043,159.6,159.57,3.17]
[1762695060364,0.04061043,159.6,159.58,3.17]
[1762695061668,0.04061043,159.6,159.58,8.811]
[1762695061966,0.04061043,159.6,159.58,3.17]
[1762695062965,2.93061043,159.6,159.56,0.04149365]
[1762695063262,7.59665188,159.59,159.56,3.22149365]
[1762695063467,2.89,159.59,159.56,3.22149365]
[1762695064269,2.93061043,159.6,159.56,3.22149365]
[1762695064470,0.04061043,159.6,159.57,3.18]
[1762695065770,0.04061043,159.6,159.59,3.18]
[1762695066069,5.79468715,159.68,159.59,3.18]
[1762695066259,5.79468715,159.68,159.56,0.04149365]
[1762695066260,8.527,159.7,159.62,5.6395]
[1762695066465,7.59858423,159.69,159.63,3.18]
[1762695066666,2.89,159.67,159.56,66.0]
[1762695066874,0.04082067,159.63,159.61,3.18]
[1762695067165,0.04082067,159.63,159.6,0.0430275]
[1762695067166,2.93082067,159.63,159.6,0.0430275]
[1762695067763,2.89,159.61,159.6,0.0430275]
[1762695067967,7.60083727,159.61,159.6,0.0430275]
[1762695068371,2.89,159.61,159.6,0.0430275]
[1762695068872,2.89,159.62,159.6,0.0430275]
[1762695073071,2.89,159.61,159.6,0.0430275]
[1762695073267,7.60168607,159.61,159.6,0.0430275]
[1762695073874,8.5305,159.6,159.54,3.18]
[1762695074661,2.89,159.59,159.54,3.18]
[1762695074867,0.04519352,159.58,159.55,3.2255849]
[1762695075576,0.04519352,159.58,159.56,3.18]
[1762695078572,2.93519352,159.58,159.55,0.0455849]
[1762695079276,2.89,159.56,159.44,3.18]
[1762695079480,2.89,159.54,159.44,3.18]
[1762695079875,2.89,159.52,159.44,8.8258]
[1762695080078,2.89,159.52,159.45,3.18]
[1762695080277,2.89,159.52,159.4,62.48]
[1762695080278,0.04239282,159.5,159.49,3.18]
[1762695080475,0.0424308,159.51,159.49,3.18]
[1762695082381,0.0424308,159.51,159.49,8.824]
[1762695082589,0.0424308,159.51,159.48,0.04675298]
[1762695082590,0.0424308,159.51,159.5,3.18]
[1762695090392,2.9324308,159.51,159.48,3.22675298]
[1762695090683,2.9324308,159.51,159.48,0.04675298]
[1762695091989,2.9324308,159.51,159.43,5.6461]
[1762695092388,3.07,159.48,159.42,3.11]
[1762695092984,3.11159883,159.47,159.44,3.11]
[1762695093584,3.11159883,159.47,159.43,0.04785841]
[1762695093786,3.11159883,159.47,159.43,3.15785841]
[1762695093989,3.11159883,159.47,159.44,3.11]
[1762695095591,3.11159883,159.47,159.43,0.04785841]
[1762695095797,0.04159883,159.47,159.44,3.11]
[1762695096392,0.04159883,159.47,159.46,3.11]
[1762695096784,3.07,159.54,159.49,3.11]
[1762695097185,5.79468715,159.58,159.49,3.11]
[1762695097186,4.86176135,159.57,159.49,3.11]
[1762695097390,7.93026749,159.6,159.52,3.11]
[1762695097699,3.07,159.58,159.52,3.11]
[1762695097892,3.11239444,159.58,159.54,0.04284211]
[1762695098095,3.1111779,159.58,159.54,0.04275154]
[1762695098285,3.07,159.56,159.54,0.04275154]
[1762695102497,3.07,159.56,159.49,5.6439]
[1762695102699,3.07,159.55,159.47,5.6448]
[1762695103390,3.07,159.53,159.45,8.7555]
[1762695103601,3.07,159.53,159.43,8.36]
[1762695103602,3.11011644,159.51,159.47,3.15092233]
[1762695104099,3.11011644,159.51,159.47,0.04092233]
[1762695105596,3.07,159.5,159.47,0.04092233]
[1762695105803,3.07,159.5,159.41,3.11]
[1762695106000,3.07,159.49,159.41,3.11]
[1762695106498,3.01,159.47,159.41,3.11]
[1762695106896,3.01,159.45,159.42,0.04352098]
[1762695108199,3.01,159.45,159.42,3.16352098]
[1762695108501,3.05384082,159.46,159.42,3.16352098]
[1762695109102,0.04384082,159.46,159.42,3.16352098]
[1762695109405,0.04384082,159.46,159.44,3.12]
[1762695110401,0.04384082,159.46,159.44,8.7658]
[1762695110598,0.04384082,159.46,159.45,3.12]
[1762695112403,0.04384082,159.46,159.44,8.7658]
[1762695112614,3.05384082,159.46,159.42,0.04352098]
[1762695113896,3.01,159.43,159.42,0.04352098]
[1762695114093,3.01,159.45,159.42,0.04352098]
[1762695116605,8.6558,159.45,159.42,0.04352098]
[1762695116814,3.01,159.44,159.42,0.04352098]
[1762695117612,3.01,159.43,159.42,0.04352098]
[1762695120707,5.68934082,159.46,159.42,0.04352098]
[1762695120708,3.01,159.45,159.42,0.04352098]
[1762695122119,2.9,159.44,159.42,0.04352098]
[1762695123511,2.9,159.43,159.42,0.04352098]
[1762695123911,7.79718358,159.45,159.42,0.04352098]
[1762695124112,2.9,159.45,159.42,0.04352098]
[1762695125707,0.04384082,159.46,159.42,3.10352098]
[1762695125911,2.94384082,159.46,159.42,3.10352098]
[1762695126105,0.04384082,159.46,159.42,3.10352098]
[1762695126305,0.04384082,159.46,159.44,3.06]
[1762695126710,2.9,159.53,159.49,3.06]
[1762695126908,2.9,159.51,159.38,3.06]
[1762695127812,0.04363443,159.46,159.45,8.7055]
[1762695128115,0.04534649,159.47,159.45,8.7055]
[1762695128502,0.04534649,159.47,159.46,3.06]
[1762695129605,4.89527861,159.54,159.48,5.6445]
[1762695129811,2.9,159.54,159.46,3.06]
[1762695130208,2.9,159.57,159.51,3.06]
[1762695130415,7.79467708,159.56,159.51,3.06]
[1762695130617,7.84328027,159.55,159.52,0.04415036]
[1762695130813,2.94825895,159.55,159.52,0.04415036]
[1762695131616,2.94825895,159.55,159.52,3.10415036]
[1762695132715,0.04825895,159.55,159.52,8.74715036]
[1762695133414,0.04825895,159.55,159.52,3.10415036]
[1762695134521,0.04825895,159.55,159.52,8.74715036]
[1762695135720,0.04825895,159.55,159.54,3.06]
[1762695135926,2.9,159.62,159.54,3.06]
[1762695136224,7.79105196,159.65,159.59,3.06]
[1762695136425,7.79105196,159.64,159.59,3.06]
[1762695136620,2.9,159.64,159.59,3.06]
[1762695136820,0.04229715,159.63,159.6,0.04020577]
[1762695137716,0.04229715,159.63,159.6,3.10020577]
[1762695141026,2.94229715,159.63,159.6,3.10020577]
[1762695141228,2.94229715,159.63,159.6,0.04020577]
[1762695142325,2.94229715,159.63,159.6,3.10020577]
[1762695142530,0.04229715,159.63,159.6,3.10020577]
[1762695143430,0.04229715,159.63,159.6,8.74040577]
[1762695144230,2.9,159.62,159.6,0.04020577]
[1762695145032,0.04229715,159.63,159.6,0.04020577]
[1762695145235,0.04229715,159.63,159.6,3.10020577]
[1762695147036,0.04229715,159.63,159.6,8.74040577]
[1762695147537,0.04229715,159.63,159.61,8.6999]
[1762695147726,0.04229715,159.63,159.62,3.06]
[1762695150848,7.72331473,159.66,159.64,3.06]
[1762695151849,10.76331473,159.66,159.63,3.00250163]
[1762695152048,10.80719009,159.66,159.63,3.00245336]
[1762695152243,3.04,159.65,159.63,0.04245336]
[1762695153053,4.3,159.64,159.51,2.96]
[1762695153356,3.04,159.63,159.51,2.96]
[1762695153650,3.04,159.63,159.59,8.6007]
[1762695153855,3.08057825,159.63,159.59,8.64261551]
[1762695154253,3.08057825,159.63,159.59,3.00191551]
[1762695155255,3.08057825,159.63,159.59,0.04191551]
[1762695155553,3.04,159.62,159.59,0.04191551]
[1762695162253,7.92074866,159.62,159.59,0.04191551]
[1762695162457,3.04,159.61,159.59,0.04191551]
[1762695162764,3.04,159.61,159.48,11.2886]
[1762695162765,3.04,159.6,159.54,5.6424]
[1762695163159,3.04,159.59,159.53,8.6027]
[1762695163468,3.04,159.59,159.53,2.96]
[1762695163853,0.04672508,159.58,159.55,2.96]
[1762695164054,0.04672508,159.58,159.54,0.04052003]
[1762695164055,0.04672508,159.58,159.56,8.6017]
[1762695164257,0.04672508,159.58,159.57,2.96]
[1762695167055,0.04672508,159.58,159.56,8.5417]
[1762695168058,3.12672508,159.58,159.55,2.9]
[1762695168266,0.04672508,159.58,159.55,2.9]
[1762695168662,0.04672508,159.58,159.56,8.5416]
[1762695169162,0.04672508,159.58,159.57,2.9]
[1762695172265,3.08,159.65,159.6,2.9]
[1762695172466,8.00398849,159.64,159.6,2.9]
[1762695172662,8.00398849,159.63,159.6,2.9]
[1762695172861,3.08,159.61,159.58,8.5408]
[1762695173068,4.92422175,159.6,159.58,8.5408]
[1762695173264,4.92422175,159.59,159.58,5.6408]
[1762695173772,4.92771478,159.59,159.57,2.94325964]
[1762695173970,3.12818257,159.61,159.57,2.94325964]
[1762695174170,4.92781879,159.6,159.57,2.94325964]
[1762695174375,3.12818257,159.61,159.57,2.94325964]
[1762695174572,4.93087876,159.6,159.57,2.94325964]
[1762695174769,3.12818257,159.61,159.58,8.5409]
[1762695175077,4.93081471,159.6,159.59,2.9]
[1762695176069,4.93081471,159.6,159.59,8.5406]
[1762695177177,0.04818257,159.61,159.59,8.5406]
[1762695178467,0.04818257,159.61,159.6,2.9]
[1762695178775,4.98562222,159.61,159.6,2.9]
[1762695179477,4.98562222,159.61,159.59,8.5406]
[1762695179674,8.01908681,159.6,159.57,0.04325964]
[1762695179870,8.01908681,159.59,159.57,0.04325964]
[1762695180065,4.93908681,159.58,159.57,0.04325964]
[1762695180575,8.01908681,159.58,159.57,0.04325964]
[1762695180771,4.93908681,159.58,159.57,0.04325964]
[1762695181378,8.01908681,159.58,159.57,0.04325964]
[1762695181777,8.01908681,159.58,159.52,2.9]
[1762695181979,3.08,159.58,159.52,2.9]
[1762695182674,3.08,159.58,159.54,2.93]
[1762695182871,3.12586957,159.58,159.54,2.97386786]
[1762695183277,3.12586957,159.58,159.54,8.61626786]
[1762695186284,3.12586957,159.58,159.55,5.642]
[1762695186982,3.12586957,159.58,159.55,8.572]
[1762695187183,0.04586957,159.58,159.56,8.5716]
[1762695188079,0.04586957,159.58,159.57,2.93]
[1762695189384,3.12586957,159.58,159.54,0.04386786]
[1762695189582,7.97903791,159.57,159.54,2.97386786]
[1762695189885,3.08,159.57,159.54,2.97386786]
[1762695190085,0.04586957,159.58,159.54,2.97386786]
[1762695190381,3.12586957,159.58,159.54,2.97386786]
[1762695190881,3.12586957,159.58,159.54,0.04386786]
[1762695191388,3.12586957,159.58,159.54,2.97386786]
[1762695192779,3.12586957,159.58,159.54,8.61626786]
[1762695193382,3.12586957,159.58,159.54,2.97386786]
[1762695194087,3.12586957,159.58,159.55,5.642]
[1762695194882,3.12586957,159.58,159.55,8.572]
[1762695195087,0.04586957,159.58,159.56,8.5716]
[1762695195388,0.04586957,159.58,159.57,2.93]
[1762695196280,3.08,159.64,159.6,2.93]
[1762695196487,4.90538681,159.63,159.6,2.93]
[1762695196679,3.08,159.64,159.6,2.93]
[1762695196680,4.90538681,159.62,159.6,2.93]
[1762695196986,3.08,159.64,159.6,2.93]
[1762695197189,4.90136707,159.63,159.6,2.97486129]
[1762695197386,4.90136707,159.62,159.6,2.97486129]
[1762695197588,3.12072829,159.64,159.6,2.97486129]
[1762695197890,4.90294199,159.63,159.6,2.97486129]
[1762695198089,4.90294199,159.62,159.6,8.61516129]
[1762695198389,3.12072829,159.64,159.6,8.61516129]
[1762695198589,4.9021549,159.63,159.6,8.61516129]
[1762695198789,4.9021549,159.62,159.6,8.61516129]
[1762695199090,3.12072829,159.64,159.61,8.5699]
[1762695199288,4.90225357,159.63,159.61,8.5699]
[1762695199588,0.04072829,159.64,159.62,8.5694]
[1762695199785,4.90125833,159.63,159.62,8.5694]
[1762695200386,0.04072829,159.64,159.62,8.5694]
[1762695201290,0.04072829,159.64,159.63,2.93]
[1762695203276,8.7156,159.74,159.65,2.93]
[1762695203477,7.97269916,159.73,159.65,2.93]
[1762695203684,4.89269916,159.72,159.65,2.93]
[1762695203893,4.89269916,159.71,159.65,2.93]
[1762695204092,4.89269916,159.7,159.65,2.93]
[1762695204286,0.04439252,159.7,159.67,2.93]
[1762695205087,0.04439252,159.7,159.69,2.93]
[1762695208293,7.95774419,159.78,159.72,2.93]
[1762695208594,3.08,159.78,159.72,2.93]
[1762695208999,8.7141,159.78,159.72,2.93]
[1762695209199,3.12541278,159.77,159.73,2.9721613]
[1762695210101,0.04541278,159.77,159.73,2.9721613]
[1762695210801,0.04541278,159.77,159.73,8.6077613]
[1762695211101,3.12541278,159.77,159.74,2.93]
[1762695211891,0.04541278,159.77,159.74,2.93]
[1762695215294,0.04541278,159.77,159.74,8.5652]
[1762695215506,0.04541278,159.77,159.75,3.08]
[1762695215805,0.04541278,159.77,159.76,3.08]
[1762695217100,3.01,159.83,159.79,3.08]
[1762695218003,3.05687212,159.83,159.79,3.12607535]
[1762695218202,3.05687212,159.83,159.8,3.08]
[1762695219704,3.05687212,159.83,159.8,8.7131]
[1762695219705,0.04687212,159.83,159.8,8.7131]
[1762695219909,0.04687212,159.83,159.8,3.08]
[1762695220898,0.04687212,159.83,159.82,3.08]
[1762695224109,0.00927135,159.83,159.82,3.08]
[1762695231112,2.98,159.94,159.86,3.16]
[1762695231816,2.98,159.94,159.87,3.16]
[1762695232216,0.04235107,159.92,159.89,3.20157683]
[1762695232914,0.04235107,159.92,159.89,8.83157683]
[1762695233115,0.04235107,159.92,159.9,3.16]
[1762695234510,0.04235107,159.92,159.91,3.16]
[1762695236308,2.98,160.02,159.94,3.16]
[1762695237522,0.04078562,160.0,159.96,3.20674924]
[1762695238221,0.04078562,160.0,159.97,3.16]
[1762695239318,0.04078562,160.0,159.97,8.7871]
[1762695239518,0.04078562,160.0,159.98,3.16]
[1762695239908,0.04078562,160.0,159.98,8.7868]
[1762695240108,0.04078562,160.0,159.99,3.16]
[1762695241212,0.04078562,160.0,159.97,3.16]
[1762695242023,3.21078562,160.0,159.96,3.09674924]